Cogmind - Beta 9.3 --- EXPLORER MODE // 2019.12.30 @ 03:57:20 // Winter2019/RPGLIKE Player: n8leveler Result: Destroyed by B-74 Champion with Powered Hammer Performance ------------- Evolutions (9) 4500 Regions Visited (18) 3600 Robots Destroyed (501) 2505 Value Destroyed (25394) 25394 Prototype IDs (40) 800 Alien Tech Used (0) 0 Bonus (8187) 8187 TOTAL SCORE: 44986 Bonus ------- High Alert Combat Kills 6936 Follower Combat Kills 1232 Network Hubs Disabled 200 Built Enhanced Grunts 300 A7 Reached Mainframe 300 Met R17 at Cetus 500 Friendly Fire -1281 Cogmind --------- Core Integrity 0/1550 Matter 290/300 Energy 980/1055 System Corruption 5% Temperature Cool (-200) Movement Flying (34) Location -1/Access Parts ------- > --- POWER (3) -------- Antimatter Reactor Particle Reactor Light Quantum Reactor > --- PROPULSION (6) --- Field Propulsion Array Field Propulsion Array Impulse Thruster Array > --- UTILITY (12) ----- Advanced Cryofiber Web Experimental Cooling System Long-range Sensor Array Experimental Signal Interpreter Advanced Armor Integrity Analyzer Advanced Particle Charger Reaction Control System Improved Light Armor Plating Improved Light Armor Plating Advanced Focal Shield > --- WEAPON (5) ------- Force Rifle Force Rifle Heavy Phase Cannon Heavy Neutron Cannon > --- INVENTORY (4) ---- Improved System Restoration Module Stasis Projector Enhanced Force Lance Peak State ------------ > --- POWER ------------ Antimatter Reactor Particle Reactor Light Quantum Reactor > --- PROPULSION ------- Field Propulsion Array Field Propulsion Array Impulse Thruster Array > --- UTILITY ---------- Improved Fusion Compressor Advanced Cryofiber Web Experimental Cooling System Long-range Sensor Array Experimental Signal Interpreter Advanced Armor Integrity Analyzer Advanced Particle Charger Reaction Control System Improved Phase Shifter Improved Light Armor Plating Improved Light Armor Plating Advanced Focal Shield > --- WEAPON ----------- Force Rifle Force Rifle Cooled Plasma Rifle Heavy Phase Cannon Enhanced Nova Cannon > --- INVENTORY -------- Improved Cloaking Device Improved System Restoration Module Heavy Neutron Cannon Enhanced Force Lance [Rating: 176] Favorites ----------- Power Light Antimatter Reactor Engine Light Deuterium Engine Power Core Micro Fission Core Reactor Light Antimatter Reactor Propulsion Field Propulsion Array Treads Light Treads Wheel Wheel Hover Unit Hover Unit Flight Unit Field Propulsion Array Utility Improved Light Armor Plating Device Advanced Sensor Array Storage High-capacity Matter Pod Processor Experimental Signal Interpreter Hackware Hacking Suite Protection Improved Light Armor Plating Weapon Force Rifle Energy Gun Force Rifle Energy Cannon Plasma Cannon Ballistic Gun Light Assault Rifle Ballistic Cannon Light Cannon Launcher Rocket Launcher Slashing Weapon Power Sword Build | -11 -10 -9 -8 -7 -7 -7 -6 -5 -4 -4 -4 -4 -4 -4 -4 -3 -2 -1 ------- Run | Scr Mat Mat Mat Fac Low Low Fac Fac Fac Was Fac Ext Cet Arc Hub Res Res Acc Slots Evolved 22 | 4 . 6 2 1 . . 4 1 2 . . 1 . . . 1 . . Power 2 | . . 1 . . . . . . 1 . . . . . . . . . Propulsion 5 | . . 2 . . . . 2 . 1 . . . . . . . . . Utility 11 | 3 . 2 1 1 . . 2 1 . . . 1 . . . . . . Weapon 4 | 1 . 1 1 . . . . . . . . . . . . 1 . . Parts Attached 295 | 9 10 33 21 22 1 . 53 18 38 1 33 8 2 . 3 28 6 9 Power 42 | 1 2 7 2 2 . . 6 2 6 . 6 1 . . 1 3 1 2 Engine 8 | 1 1 5 1 . . . . . . . . . . . . . . . Core 17 | . 1 2 1 2 . . 4 2 3 . 1 . . . 1 . . . Reactor 17 | . . . . . . . 2 . 3 . 5 1 . . . 3 1 2 Propulsion 53 | 2 . 8 2 2 . . 16 3 9 1 5 . . . 2 . . 3 Treads 1 | 1 . . . . . . . . . . . . . . . . . . Leg . | . . . . . . . . . . . . . . . . . . . Wheel 2 | 1 . 1 . . . . . . . . . . . . . . . . Hover 7 | . . 4 . . . . 3 . . . . . . . . . . . Flight 43 | . . 3 2 2 . . 13 3 9 1 5 . . . 2 . . 3 Utility 122 | 4 3 12 12 9 1 . 19 8 13 . 9 6 2 . . 18 4 2 Device 91 | 2 1 7 6 6 . . 17 5 12 . 8 6 1 . . 15 3 2 Storage 7 | 1 1 2 1 . . . . 1 . . . . . . . 1 . . Processor 4 | . . 1 . . . . . 1 1 . . . . . . . 1 . Hackware 3 | . . 1 . . . . 1 1 . . . . . . . . . . Protection 17 | 1 1 1 5 3 1 . 1 . . . 1 . 1 . . 2 . . Artifact . | . . . . . . . . . . . . . . . . . . . Weapon 78 | 2 5 6 5 9 . . 12 5 10 . 13 1 . . . 7 1 2 Energy Gun 40 | 1 3 3 2 3 . . 8 3 5 . 7 . . . . 5 . . Energy Cannon 32 | . 1 2 3 6 . . 3 2 3 . 6 1 . . . 2 1 2 Ballistic Gun 1 | 1 . . . . . . . . . . . . . . . . . . Ballistic Cannon 1 | . 1 . . . . . . . . . . . . . . . . . Launcher 1 | . . 1 . . . . . . . . . . . . . . . . Special Weapon . | . . . . . . . . . . . . . . . . . . . Impact Weapon . | . . . . . . . . . . . . . . . . . . . Slashing Weapon 3 | . . . . . . . 1 . 2 . . . . . . . . . Piercing Weapon . | . . . . . . . . . . . . . . . . . . . Special Melee Weapon . | . . . . . . . . . . . . . . . . . . . Unidentified Prototypes 32 | . . 2 2 2 . . 4 2 4 . 6 . 1 . 2 6 . 1 Parts Lost 3 | . . . . . . . . . 1 . . . . . . . . 2 Power . | . . . . . . . . . . . . . . . . . . . Propulsion 1 | . . . . . . . . . 1 . . . . . . . . . Utility 2 | . . . . . . . . . . . . . . . . . . 2 Weapon . | . . . . . . . . . . . . . . . . . . . Highest Loss Streak 1 | . . . . . . . . . 1 . . . . . . . . 1 Average Slot Usage (%) 95 | . 100 97 98 100 100 100 99 99 99 100 89 87 88 88 88 87 88 86 Engine 1 | . 6 4 4 1 . . . . . . . . . . . . . . Core 5 | . 5 5 7 10 11 11 6 4 6 8 3 . . . 2 2 . . Reactor 4 | . . . . . . . 3 4 3 4 8 12 12 12 9 8 11 11 Flight 15 | . . 11 20 17 17 17 22 22 23 25 14 12 12 12 12 11 11 10 Device 27 | . 29 28 22 28 23 23 30 33 25 25 24 26 28 28 28 25 25 28 Processor 3 | . . 3 . . . . . . 5 8 8 8 8 8 8 7 7 7 Protection 13 | . 12 12 18 17 22 23 15 13 12 12 12 12 12 12 12 11 11 7 Energy Gun 8 | . 16 8 5 5 5 5 6 9 8 8 11 8 8 8 8 10 11 10 Energy Cannon 9 | . 2 9 13 17 17 17 12 8 7 4 2 7 8 8 8 7 7 6 Naked Turns . | . . . . . . . . . . . . . . . . . . . Heaviest Build 111 | 10 17 34 40 50 48 48 62 69 78 71 89 97 97 97 99 109 108 111 Greatest Support 113 | 20 10 33 43 48 48 48 72 72 78 80 99 99 99 99 99 109 109 113 Greatest Overweight (x) 2 | 2 1 2 . 1 . . 1 . 1 . . . . . 1 . . 1 Average Overweight (x) . | . . . . . . . . . . . . . . . . . . . Largest Inventory Capacity 4 | 1 1 1 2 3 4 4 4 4 4 4 4 4 4 4 4 4 4 4 Average Capacity 3 | . 1 1 1 2 3 4 4 4 4 4 4 4 4 4 4 4 4 4 Most Carried 4 | 1 1 1 2 3 4 4 4 4 4 4 4 4 4 4 4 4 4 4 Average Carried 2 | . . . 1 1 3 4 3 3 3 4 3 4 4 4 4 3 3 3 Final Capacity 4 | 1 1 1 2 3 4 4 4 4 4 4 4 4 4 4 4 4 4 4 Final Carried 4 | 1 1 1 2 3 4 4 4 4 4 4 4 4 4 4 4 4 4 3 Class Distribution -------------------- 45% | Hacker-Sprinter 29% | Generator-Gunner 11% | Generator-Sprinter 9% | Hacker-Mutant Dominant Class ---------------- Hacker-Mutant | -10/Materials Hacker-Sprinter | -9/Materials Hacker-Sprinter | -8/Materials Hacker-Sprinter | -7/Factory Hacker-Sprinter | -7/Lower Caves Hacker-Sprinter | -7/Lower Caves Hacker-Sprinter | -6/Factory Hacker-Sprinter | -5/Factory Generator-Sprinter | -4/Factory Generator-Sprinter | -4/Waste Generator-Gunner | -4/Factory Generator-Gunner | -4/Extension Generator-Gunner | -4/Cetus Generator-Gunner | -4/Archives Generator-Gunner | -4/Hub_04(d) Generator-Gunner | -3/Research Generator-Gunner | -2/Research Generator-Gunner | -1/Access Resources | -11 -10 -9 -8 -7 -7 -7 -6 -5 -4 -4 -4 -4 -4 -4 -4 -3 -2 -1 ----------- Run | Scr Mat Mat Mat Fac Low Low Fac Fac Fac Was Fac Ext Cet Arc Hub Res Res Acc Matter Collected 3331 | 309 253 320 210 200 40 . 530 113 407 . 336 90 70 . 30 287 60 76 Remotely . | . . . . . . . . . . . . . . . . . . . Salvage Created 25731 | 205 347 989 1458 689 460 36 3196 1608 3004 . 3900 1159 412 236 1740 3705 1242 1345 Parts 1260 | 19 22 89 62 63 12 1 120 99 163 . 177 49 18 5 83 150 60 68 Haulers Intercepted 7 | . . 1 . . . . 2 1 . . 2 . . . . 1 . . Recyclers Shooed 5 | 1 . . . . . . . . 1 . 1 2 . . . . . . Parts Field Recycled . | . . . . . . . . . . . . . . . . . . . Retrieved Matter . | . . . . . . . . . . . . . . . . . . . Parts Self-Destructed . | . . . . . . . . . . . . . . . . . . . Prevented . | . . . . . . . . . . . . . . . . . . . Kills | -11 -10 -9 -8 -7 -7 -7 -6 -5 -4 -4 -4 -4 -4 -4 -4 -3 -2 -1 ------- Run | Scr Mat Mat Mat Fac Low Low Fac Fac Fac Was Fac Ext Cet Arc Hub Res Res Acc Combat Hostiles Destroyed 364 | . 8 29 27 20 9 2 46 31 41 . 48 10 4 3 12 41 19 14 Melee 1 | . . . . . . . 1 . . . . . . . . . . . Guns 171 | . 7 16 4 2 2 2 11 16 19 . 36 2 2 . 4 30 10 8 Cannons 154 | . 1 13 21 16 4 . 25 8 19 . 6 8 2 3 8 8 7 5 AOE 14 | . . . 2 1 . . 1 4 2 . 3 . . . . . . 1 Classes Destroyed 18 | 3 2 6 2 1 1 . 2 . . . 1 . . . . . . . Worker 22 | 2 . . 1 1 . . 8 1 2 . 3 . . . 4 . . . Builder 19 | . . 1 . . . . 1 1 4 . 2 . . . 6 3 . 1 Tunneler 3 | 3 . . . . . . . . . . . . . . . . . . Hauler 7 | . . 1 . . . . 2 1 . . 2 . . . . 1 . . Recycler 13 | 1 . . 1 . . . . . 2 . 4 1 . . 2 1 . 1 Carrier 2 | . . . . . . . 1 . . . . . . . . 1 . . Operator 20 | . . 3 . 4 . . 3 1 1 . 3 2 . . 2 . . 1 Watcher 49 | . 3 5 5 2 . . 6 4 6 . 5 2 2 . 2 5 1 1 Swarmer 45 | . . 5 . . . 2 8 5 . . 11 . . . . 8 3 3 Grunt 122 | . 8 13 13 9 2 . 18 13 15 . 14 . 1 . 4 9 . 3 Brawler 8 | . . . 1 . 1 . 1 1 . . 2 . . . . 2 . . Duelist 6 | . . 1 1 . . . 1 . 2 . 1 . . . . . . . Protector 2 | . . . . . . . . . . . 1 . . . . 1 . . Sentry 83 | . . 10 10 6 . . 8 7 11 . 8 5 . 3 3 6 3 3 Hunter 33 | . . . 2 2 . . 5 1 5 . 1 3 1 . 3 6 4 . Programmer 52 | . . . . 3 . . 4 4 7 . 9 . . . 2 9 9 5 Behemoth 5 | . . . . . . . 1 . 1 . 1 2 . . . . . . Cetus Guard 2 | . . . . . . . . . . . . . 2 . . . . . Enhanced Grunt 1 | . . . . . . . . . . . . . . . 1 . . . Thug 2 | . . . . . 1 . . . . . . . . . 1 . . . Savage 1 | . . . . . 1 . . . . . . . . . . . . . Butcher 3 | . . . . . 3 . . . . . . . . . . . . . Mutant 1 | . . . . . 1 . . . . . . . . . . . . . Best Kill Streak 14 | 3 3 4 8 5 3 2 8 9 8 . 10 4 2 3 13 14 5 5 Combat Bots Only 9 | . 2 4 6 5 4 2 6 7 8 . 6 3 2 3 4 9 4 5 Max Kills in Single Turn 7 | 1 1 2 3 1 1 1 3 5 4 . 2 2 1 1 7 3 1 1 Gunslinging . | . . . . . . . . . . . . . . . . . . . Exploded 4 | . . . 2 1 . . 1 4 2 . 1 . . . . . . 1 Melee 1 | . . . . . . . 1 . . . . . . . . . . . Uniques/NPCs Destroyed . | . . . . . . . . . . . . . . . . . . . Combat | -11 -10 -9 -8 -7 -7 -7 -6 -5 -4 -4 -4 -4 -4 -4 -4 -3 -2 -1 -------- Run | Scr Mat Mat Mat Fac Low Low Fac Fac Fac Was Fac Ext Cet Arc Hub Res Res Acc Damage Taken 12443 | . 168 372 756 381 157 34 1247 765 1387 . 1382 658 52 . 397 1294 1658 1735 Core 9686 | . 135 296 588 284 120 26 956 591 1080 . 1068 509 41 . 307 997 1310 1378 Absorbed by Shields 85 | . . . . . . . . . . . . 38 47 . . . . . Redirected to Core 8817 | . 84 225 538 274 112 26 826 555 962 . 1000 491 41 . 273 974 1165 1271 Core Remaining (%) 93 | 100 100 98 100 . . 97 98 96 . . . . . . 94 83 68 . Volleys Fired 924 | 15 26 75 85 45 20 4 111 53 97 1 117 34 17 5 29 86 45 59 Largest 5 | 2 2 3 3 4 4 3 4 4 4 3 4 4 4 4 4 5 5 5 Hottest 450 | 70 125 201 204 289 289 209 299 348 375 270 350 368 368 368 368 407 395 450 Shots Fired 3163 | 30 49 160 230 178 80 12 405 187 312 3 376 125 61 20 116 343 218 258 Gun 1746 | 30 43 71 68 45 20 4 123 106 191 2 336 69 34 10 58 234 135 167 Cannon 1417 | . 6 89 162 133 60 8 282 81 121 1 40 56 27 10 58 109 83 91 Launcher . | . . . . . . . . . . . . . . . . . . . Special . | . . . . . . . . . . . . . . . . . . . Kinetic 18 | 15 3 . . . . . . . . . . . . . . . . . Thermal 3145 | 15 46 160 230 178 80 12 405 187 312 3 376 125 61 20 116 343 218 258 Explosive . | . . . . . . . . . . . . . . . . . . . Electromagnetic . | . . . . . . . . . . . . . . . . . . . Robot Hit Streak 80 | 17 19 37 31 55 36 24 46 66 70 . 46 41 59 8 28 50 80 50 Robot Miss Streak 4 | 1 1 4 3 1 1 . 3 1 2 . 3 2 2 2 1 3 1 1 Penetration Max . | . . . . . . . . . . . . . . . . . . . Secondary Targets 10 | . 1 . . . . . . . . . 5 . . . . 3 . 1 Max Gunslinging Chain 1 | . 1 . . . . . . . . . 1 . . . . 1 . 1 Shots Hit Robots 2168 | 24 39 129 185 128 61 8 292 129 239 . 256 100 49 13 82 237 111 86 Core Hits 995 | 9 22 133 112 45 19 2 106 62 111 . 108 35 16 6 44 98 35 32 Critical Hits 124 | . . . 8 7 1 . 9 9 22 . 23 7 1 3 7 15 5 7 Critical Kills 51 | . . . 2 3 . . 5 4 10 . 13 1 1 . 2 6 1 3 Critical Parts Destroyed 68 | . . . 6 4 1 . 4 4 10 . 9 6 . 2 5 9 4 4 Melee Attacks 4 | . . . . . . . 2 . 2 . . . . . . . . . Impact . | . . . . . . . . . . . . . . . . . . . Slashing 4 | . . . . . . . 2 . 2 . . . . . . . . . Piercing . | . . . . . . . . . . . . . . . . . . . Sneak Attacks . | . . . . . . . . . . . . . . . . . . . Combat Hostiles . | . . . . . . . . . . . . . . . . . . . Follow-up Attacks . | . . . . . . . . . . . . . . . . . . . Damage Inflicted 71472 | 272 483 2022 3660 3231 1535 107 8463 4811 8976 . 9523 3853 1736 560 4268 9314 5270 3388 Guns 36652 | 272 412 1124 1126 729 369 54 2190 2124 4621 . 7823 1820 951 273 1403 6320 2926 2115 Cannons 28733 | . 71 898 2238 2207 1166 53 5350 1525 3329 . 1170 2033 785 287 1628 2994 1808 1191 Explosions 5904 | . . . 296 295 . . 825 1162 941 . 530 . . . 1237 . 536 82 Melee 183 | . . . . . . . 98 . 85 . . . . . . . . . Ramming . | . . . . . . . . . . . . . . . . . . . Kinetic 104 | 84 20 . . . . . . . . . . . . . . . . . Thermal 68598 | 188 463 2022 3364 3168 1535 107 8348 4711 8891 . 9154 3853 1736 560 3144 9314 4734 3306 Explosive 1354 | . . . 296 63 . . . 100 . . 277 . . . . . 536 82 Electromagnetic 1233 | . . . . . . . 17 . . . 92 . . . 1124 . . . Impact . | . . . . . . . . . . . . . . . . . . . Slashing 183 | . . . . . . . 98 . 85 . . . . . . . . . Piercing . | . . . . . . . . . . . . . . . . . . . Highest Corruption 6 | . . . . 1 . . 1 2 2 6 6 . . . 1 3 2 5 Average Corruption 1 | . . . . 1 . . 1 1 1 5 2 . . . 1 1 1 3 Corruption Purged 21 | . . . . 2 . . 3 2 1 . 9 . . . . 4 . . Effects 54 | . . . . 4 . . 5 1 6 2 15 . . . 1 8 4 8 Message Errors 11 | . . . . 2 . . . 1 1 1 4 . . . . 1 1 . Matter Fused 2 | . . . . . . . . . . . 1 . . . . 1 . . Heat Flow Errors 6 | . . . . . . . . . 1 1 4 . . . . . . . Energy Discharges 3 | . . . . 2 . . . . . . 1 . . . . . . . Parts Rejected 1 | . . . . . . . . . . . . . . . . . . 1 Data Loss (minor) 9 | . . . . . . . 3 . . . 2 . . . 1 2 . 1 Targeting Errors 19 | . . . . . . . 1 . 4 . 2 . . . . 4 3 5 Weapon Failures 3 | . . . . . . . 1 . . . 1 . . . . . . 1 Overload Shots 4 | . . . . . . . . . . . . . . . . . . 4 Overflow Damage 2574 | . . 37 52 175 72 . 316 285 402 . 214 125 . . 316 282 200 98 Projectiles 1477 | . . 37 52 91 72 . 144 64 95 . 134 125 . . 97 282 186 98 Explosions 1097 | . . . . 84 . . 172 221 307 . 80 . . . 219 . 14 . Melee . | . . . . . . . . . . . . . . . . . . . Knockbacks . | . . . . . . . . . . . . . . . . . . . Impact . | . . . . . . . . . . . . . . . . . . . Kinetic . | . . . . . . . . . . . . . . . . . . . Secondary . | . . . . . . . . . . . . . . . . . . . Self-Inflicted Damage 656 | . . . 81 . . . 27 41 148 . 99 . . . 69 . 61 130 Shots 14 | . . . 2 . . . 1 1 3 . 3 . . . 1 . 1 2 Rammed . | . . . . . . . . . . . . . . . . . . . Targets Rammed . | . . . . . . . . . . . . . . . . . . . Kicked . | . . . . . . . . . . . . . . . . . . . Crushed . | . . . . . . . . . . . . . . . . . . . Highest Temperature 616 | . 4 177 616 358 503 . 470 515 611 250 416 406 14 77 531 268 289 83 Average Temperature 135 | . 4 79 182 97 187 . 141 129 162 125 73 140 10 28 194 114 121 61 Received Heat Transfer 2759 | . 156 180 477 189 72 . 441 228 312 . 297 159 8 . 60 144 9 27 Effects 68 | . . . 6 1 2 . 15 8 25 . 6 5 . . . . . . Shutdowns 19 | . . . . . . . 4 2 8 . 5 . . . . . . . Energy Bleed 14 | . . . 2 1 2 . 3 1 1 . 1 3 . . . . . . Interference 21 | . . . 1 . . . 8 3 7 . . 2 . . . . . . Matter Decay 2 | . . . 1 . . . . . 1 . . . . . . . . . Short Circuit 5 | . . . 2 . . . . 1 2 . . . . . . . . . Damage (minor) 1 | . . . . . . . . 1 . . . . . . . . . . Damage (major) 6 | . . . . . . . . . 6 . . . . . . . . . Siege Activations . | . . . . . . . . . . . . . . . . . . . Robots Corrupted 2 | . . . . . . . . . . . . . . . 2 . . . Combat Hostiles . | . . . . . . . . . . . . . . . . . . . Parts Fried 3 | . . . . . . . . . . . . . 1 . 2 . . . Impact Corruptions . | . . . . . . . . . . . . . . . . . . . Robots Melted 25 | . . . . 1 3 . 9 3 1 . 3 . . . . 3 2 . Combat Hostiles 24 | . . . . 1 3 . 8 3 1 . 3 . . . . 3 2 . Parts Melted 279 | . 1 4 12 6 1 2 45 29 28 . 40 3 . 6 9 46 35 12 Heat Transferred 80471 | 555 1134 3050 5190 4893 2608 198 12572 5734 9592 . 9869 3644 1684 531 2905 9077 4195 3040 Parts Sabotaged 5 | . . . . . . . . . . . . . . . . 3 . 2 Parts Stolen . | . . . . . . . . . . . . . . . . . . . Parts Stripped . | . . . . . . . . . . . . . . . . . . . Power Chain Reactions 1 | . . . . . . . . . . . . . . . 1 . . . Missiles Intercepted . | . . . . . . . . . . . . . . . . . . . Alert | -11 -10 -9 -8 -7 -7 -7 -6 -5 -4 -4 -4 -4 -4 -4 -4 -3 -2 -1 ------- Run | Scr Mat Mat Mat Fac Low Low Fac Fac Fac Was Fac Ext Cet Arc Hub Res Res Acc Peak Influence 1731 | 30 173 607 716 489 . . 1156 1059 1432 375 1433 535 433 166 1002 1731 1257 983 Average Influence 520 | 9 74 297 481 207 . . 567 558 885 315 682 247 220 151 431 1129 835 630 Maximum Alert Level 5 | . . 2 3 2 . . 4 3 4 1 4 2 2 . 3 5 4 3 Low Security (%) 22 | 100 100 23 4 55 . . 14 2 . . 6 35 47 100 19 . . . Level 1 23 | . . 54 29 36 . . 14 21 4 100 35 45 51 . 24 . . 7 Level 2 25 | . . 21 63 8 . . 31 48 28 . 9 19 1 . 45 19 9 76 Level 3 18 | . . . 2 . . . 36 27 34 . 18 . . . 10 25 80 16 Level 4 9 | . . . . . . . 3 . 31 . 29 . . . . 42 9 . Level 5 . | . . . . . . . . . . . . . . . . 11 . . High Security . | . . . . . . . . . . . . . . . . . . . Max Security . | . . . . . . . . . . . . . . . . . . . Squads Dispatched 86 | . 1 3 5 8 . . 13 4 10 . 10 1 1 . 5 10 5 10 Investigation 23 | . 1 . 2 4 . . 5 2 4 . 1 1 1 . 1 . . 1 Extermination 19 | . . . . 2 . . 3 2 2 . 3 . . . 1 1 2 3 Reinforcement 19 | . . 3 . 2 . . 3 . 1 . 3 . . . 2 4 1 . Assault 16 | . . . . . . . 2 . . . 3 . . . 1 4 2 4 Garrison 9 | . . . 3 . . . . . 3 . . . . . . 1 . 2 Intercept . | . . . . . . . . . . . . . . . . . . . Construction Impeded 5 | . . . . . . . . . . . 1 . . . 1 3 . . Haulers Reinforced 4 | . . . . . . . 1 . . . 2 . . . . 1 . . Stealth | -11 -10 -9 -8 -7 -7 -7 -6 -5 -4 -4 -4 -4 -4 -4 -4 -3 -2 -1 --------- Run | Scr Mat Mat Mat Fac Low Low Fac Fac Fac Was Fac Ext Cet Arc Hub Res Res Acc Distress Signals 19 | . 1 1 1 2 . . . . 2 . 1 2 2 . 3 4 . . Communications Jammed 2 | . . 2 . . . . . . . . . . . . . . . . Distress Signals 2 | . . 2 . . . . . . . . . . . . . . . . Times Spotted 549 | . 11 44 35 25 9 2 66 35 47 6 77 21 17 3 30 61 33 27 Peak Tracking Total 12 | . 3 3 5 5 4 2 5 5 8 6 12 6 5 1 10 12 12 9 Tactical Retreats 22 | . . 2 . . . . . 1 . . 5 3 . . 1 3 4 3 Traps | -11 -10 -9 -8 -7 -7 -7 -6 -5 -4 -4 -4 -4 -4 -4 -4 -3 -2 -1 ------- Run | Scr Mat Mat Mat Fac Low Low Fac Fac Fac Was Fac Ext Cet Arc Hub Res Res Acc Traps Triggered 24 | . . 1 1 3 . . 2 4 3 . 6 4 . . . . . . Indirectly . | . . . . . . . . . . . . . . . . . . . Trap Hack Attempts . | . . . . . . . . . . . . . . . . . . . Triggered . | . . . . . . . . . . . . . . . . . . . Disarmed . | . . . . . . . . . . . . . . . . . . . Reprogrammed . | . . . . . . . . . . . . . . . . . . . Reused . | . . . . . . . . . . . . . . . . . . . Traps Extracted . | . . . . . . . . . . . . . . . . . . . Installed . | . . . . . . . . . . . . . . . . . . . Triggered 4 | . . . . . 4 . . . . . . . . . . . . . Machines | -11 -10 -9 -8 -7 -7 -7 -6 -5 -4 -4 -4 -4 -4 -4 -4 -3 -2 -1 ---------- Run | Scr Mat Mat Mat Fac Low Low Fac Fac Fac Was Fac Ext Cet Arc Hub Res Res Acc Machines Disabled 127 | . 1 1 6 10 . . 19 15 13 . 23 1 1 1 17 5 6 8 Max in Single Turn 14 | . 1 1 2 5 . . 9 5 6 . 4 1 . 1 14 1 1 1 Garrison Access 6 | . . . . . . . 1 . . . 1 . . . . 2 . 2 Network Hub 1 | . . . . . . . . . . . . . . . 1 . . . Energy Cycler 1 | . . . . . . . . . . . . . . . . . . 1 Machines Sabotaged 1 | . . . . 1 . . . . . . . . . . . . . . Garrisons Compromised . | . . . . . . . . . . . . . . . . . . . Overloaded Fab Kills . | . . . . . . . . . . . . . . . . . . . Fab Network Shutdowns 2 | . . . . . . . 1 . . . 1 . . . . . . . Hacking | -11 -10 -9 -8 -7 -7 -7 -6 -5 -4 -4 -4 -4 -4 -4 -4 -3 -2 -1 --------- Run | Scr Mat Mat Mat Fac Low Low Fac Fac Fac Was Fac Ext Cet Arc Hub Res Res Acc Machines Accessed 133 | . 8 10 12 10 1 . 28 9 11 . 14 11 3 1 2 5 3 5 Terminals 81 | . 6 6 8 7 . . 15 4 4 . 7 10 3 . 2 3 3 3 Fabricators 11 | . . . . 1 . . 5 1 1 . 2 . . . . . . 1 Repair Stations 1 | . . . . . . . . . 1 . . . . . . . . . Recycling Units 28 | . 2 2 2 1 . . 6 4 3 . 4 1 . . . 2 . 1 Scanalyzers 10 | . . 2 2 1 . . 2 . 2 . 1 . . . . . . . Garrison Access . | . . . . . . . . . . . . . . . . . . . Total Hacks 305 | . 19 25 29 25 1 . 83 18 26 . 26 19 5 1 2 7 8 11 Successful 200 | . 15 19 23 13 1 . 49 9 18 . 18 15 5 1 2 5 5 2 Failed 105 | . 4 6 6 12 . . 34 9 8 . 8 4 . . . 2 3 9 Catastrophic 6 | . . . . . . . 1 1 . . 2 1 . . . . . 1 Database Lockouts . | . . . . . . . . . . . . . . . . . . . Manual 13 | . . . . 1 . . . . . . . . 3 4 1 4 . . Terminals 185 | . 15 16 19 20 . . 40 9 9 . 13 17 5 . 2 4 8 8 Fabricators 35 | . . . . 1 . . 22 2 2 . 7 . . . . . . 1 Repair Stations 2 | . . . . . . . . . 2 . . . . . . . . . Recycling Units 50 | . 4 5 3 1 . . 13 7 6 . 4 2 . . . 3 . 2 Scanalyzers 31 | . . 4 7 3 . . 8 . 7 . 2 . . . . . . . Garrison Access . | . . . . . . . . . . . . . . . . . . . Terminal Hacks 112 | . 11 11 13 9 1 . 22 3 5 . 7 13 5 1 2 2 5 2 Record 5 | . . . . . . . . . . . . . 4 1 . . . . Part Schematic 2 | . . . . . . . 1 . . . 1 . . . . . . . Robot Schematic 3 | . . . . . . . 1 . . . . . . . . 1 . 1 Prototype ID Bank 5 | . 1 1 2 1 . . . . . . . . . . . . . . Open Door 7 | . . . . . 1 . . . . . . 5 1 . . . . . Level Access Points 3 | . . . 1 1 . . . . . . . . . . . . 1 . Branch Access Points 4 | . 1 . 1 1 . . 1 . . . . . . . . . . . Emergency Access Points 2 | . 1 . . . . . 1 . . . . . . . . . . . Alert Level 13 | . . 3 4 . . . 2 . 1 . 1 . . . 1 1 . . Unreport Threat 16 | . . . 2 1 . . 5 . . . 2 5 . . . . . 1 Locate Traps 18 | . 4 . 1 2 . . 5 1 1 . 2 1 . . . . 1 . Maintenance Status 2 | . 1 1 . . . . . . . . . . . . . . . . Security Status 1 | . . 1 . . . . . . . . . . . . . . . . Investigation Status 5 | . 1 1 . 1 . . 1 . . . . . . . . . 1 . Extermination Status 1 | . . . . . . . . 1 . . . . . . . . . . Reinforcement Status 2 | . . 1 . . . . . 1 . . . . . . . . . . Assault Status 2 | . . . 1 . . . . . 1 . . . . . . . . . Recall Reinforcements 1 | . . 1 . . . . . . . . . . . . . . . . Registered Components 1 | . . 1 . . . . . . . . . . . . . . . . Zone Layout 19 | . 2 1 1 2 . . 5 . 2 . 1 2 . . 1 . 2 . Fabricator Hacks 20 | . . . . 1 . . 13 . 1 . 5 . . . . . . . Load Schematic 6 | . . . . . . . 3 . . . 3 . . . . . . . Build 14 | . . . . 1 . . 10 . 1 . 2 . . . . . . . Repair Station Hacks 2 | . . . . . . . . . 2 . . . . . . . . . Scan Component 1 | . . . . . . . . . 1 . . . . . . . . . Repair 1 | . . . . . . . . . 1 . . . . . . . . . Recycling Unit Hacks 40 | . 4 4 3 1 . . 8 6 5 . 4 2 . . . 3 . . Recycle Component 1 | . . . . . . . 1 . . . . . . . . . . . Process 7 | . 1 . . . . . 1 2 1 . . 1 . . . 1 . . Report Inventory 25 | . 2 2 2 1 . . 5 4 2 . 4 1 . . . 2 . . Retrieve Matter 1 | . . 1 . . . . . . . . . . . . . . . . Retrieve Components 6 | . 1 1 1 . . . 1 . 2 . . . . . . . . . Scanalyzer 25 | . . 4 7 1 . . 6 . 5 . 2 . . . . . . . Insert Component 15 | . . 2 4 1 . . 4 . 3 . 1 . . . . . . . Analyze 10 | . . 2 3 . . . 2 . 2 . 1 . . . . . . . Garrison Access Hacks . | . . . . . . . . . . . . . . . . . . . Unauthorized Hacks 2 | . . . . 2 . . . . . . . . . . . . . . Terminals 1 | . . . . 1 . . . . . . . . . . . . . . Sabotage 1 | . . . . 1 . . . . . . . . . . . . . . Fabricators . | . . . . . . . . . . . . . . . . . . . Repair Stations . | . . . . . . . . . . . . . . . . . . . Recycling Units . | . . . . . . . . . . . . . . . . . . . Scanalyzers . | . . . . . . . . . . . . . . . . . . . Garrison Access . | . . . . . . . . . . . . . . . . . . . Data Cores Recovered 15 | . . 3 . 2 . . 3 1 . . 3 1 . . 1 . . 1 Used 4 | . . 1 . 2 . . . . . . . 1 . . . . . . Hacking Detections 88 | . 5 3 6 10 . . 22 4 10 . 11 7 1 . . 2 2 5 Full Trace Events 19 | . 2 . 2 3 . . 5 1 2 . 1 1 1 . . . . 1 Feedback Events 3 | . . . . 1 . . 1 1 . . . . . . . . . . Corruption 3 | . . . . 1 . . 1 1 . . . . . . . . . . Feedback Blocked . | . . . . . . . . . . . . . . . . . . . Robot Schematics Acquired 3 | . . . . . . . 1 . . . . . . . . 1 . 1 Robots Built 3 | . . . . . . . . . . . 3 . . . . . . . Matter 285 | . . . . . . . . . . . 285 . . . . . . . Time 76 | . . . . . . . . . . . 76 . . . . . . . Total Robot Build Rating 15 | . . . . . . . . . . . 15 . . . . . . . Part Schematics Acquired 10 | . . 2 2 . . . 3 . 1 . 2 . . . . . . . Parts Built 9 | . . . . 1 . . 4 . 2 . 2 . . . . . . . Matter 1506 | . . . . 234 . . 760 . 278 . 234 . . . . . . . Time 584 | . . . . 58 . . 399 . 69 . 58 . . . . . . . Total Part Build Rating 59 | . . . . 7 . . 20 . 18 . 14 . . . . . . . Parts Repaired 1 | . . . . . . . . . 1 . . . . . . . . . Time 53 | . . . . . . . . . 53 . . . . . . . . . Parts Recycled 1 | . . . . . . . 1 . . . . . . . . . . . Recycled Matter 1383 | . 2 . . . . . 401 15 148 . . 501 . . . 316 . . Retrieved Matter 32 | . . 32 . . . . . . . . . . . . . . . . Retrieved Components 25 | . . 9 10 . . . 3 . 3 . . . . . . . . . Parts Scanalyzed 13 | . . 2 3 1 . . 3 . 3 . 1 . . . . . . . Part Schematics Acquired 8 | . . 2 2 . . . 2 . 1 . 1 . . . . . . . Parts Damaged . | . . . . . . . . . . . . . . . . . . . Bothacking | -11 -10 -9 -8 -7 -7 -7 -6 -5 -4 -4 -4 -4 -4 -4 -4 -3 -2 -1 ------------ Run | Scr Mat Mat Mat Fac Low Low Fac Fac Fac Was Fac Ext Cet Arc Hub Res Res Acc Used RIF Installer . | . . . . . . . . . . . . . . . . . . . Robots Hacked . | . . . . . . . . . . . . . . . . . . . Non-combat . | . . . . . . . . . . . . . . . . . . . Combat . | . . . . . . . . . . . . . . . . . . . Robot Hacks Applied . | . . . . . . . . . . . . . . . . . . . Relay Couplers Released 8 | . . . . 2 . . . . 2 . 1 . . . . 2 . 1 Machine Destruction 4 | . . . . . . . . . . . 1 . . . . 2 . 1 Programmers 4 | . . . . 2 . . . . 2 . . . . . . . . . Robots Rewired . | . . . . . . . . . . . . . . . . . . . Allies Hacked . | . . . . . . . . . . . . . . . . . . . Hacks Repelled . | . . . . . . . . . . . . . . . . . . . Allies | -11 -10 -9 -8 -7 -7 -7 -6 -5 -4 -4 -4 -4 -4 -4 -4 -3 -2 -1 -------- Run | Scr Mat Mat Mat Fac Low Low Fac Fac Fac Was Fac Ext Cet Arc Hub Res Res Acc Total Allies 31 | . . . . . . . . . . 19 3 4 5 . . . . . Largest Group 19 | . . . . . . . . . . 19 3 4 8 7 5 . . . Highest-Rated Group 714 | . . . . . . . . . . 714 87 277 713 619 369 . . . Highest-Rated Ally 156 | . . . . . . . . . . 50 29 156 156 156 94 . . . Total Orders . | . . . . . . . . . . . . . . . . . . . Ally Attacks 222 | . . . . . . . . . . 53 26 . 82 19 42 . . . Total Damage 6240 | . . . . . . . . . . 1746 437 . 2131 732 1194 . . . Kills 19 | . . . . . . . . . . 1 . . 11 1 6 . . . Allies Corrupted . | . . . . . . . . . . . . . . . . . . . Allies Melted . | . . . . . . . . . . . . . . . . . . . Intel | -11 -10 -9 -8 -7 -7 -7 -6 -5 -4 -4 -4 -4 -4 -4 -4 -3 -2 -1 ------- Run | Scr Mat Mat Mat Fac Low Low Fac Fac Fac Was Fac Ext Cet Arc Hub Res Res Acc Robot Analysis Total . | . . . . . . . . . . . . . . . . . . . Derelict Logs Recovered 2 | . . . . . 2 . . . . . . . . . . . . . Drone Launches . | . . . . . . . . . . . . . . . . . . . Drone Recoveries . | . . . . . . . . . . . . . . . . . . . Exploration | -11 -10 -9 -8 -7 -7 -7 -6 -5 -4 -4 -4 -4 -4 -4 -4 -3 -2 -1 ------------- Run | Scr Mat Mat Mat Fac Low Low Fac Fac Fac Was Fac Ext Cet Arc Hub Res Res Acc Turns Passed 16049 | 250 771 1091 975 1703 753 52 2284 899 1283 82 1933 774 426 113 334 787 671 868 Spaces Moved 21668 | 152 528 1359 941 1969 1445 135 4280 1746 1640 206 2517 982 436 160 478 974 445 1275 Core 29 | 29 . . . . . . . . . . . . . . . . . . Treads 69 | 69 . . . . . . . . . . . . . . . . . . Legs . | . . . . . . . . . . . . . . . . . . . Wheels 886 | 54 528 304 . . . . . . . . . . . . . . . . Hover 263 | . . 144 . . . . 119 . . . . . . . . . . . Flight 20421 | . . 911 941 1969 1445 135 4161 1746 1640 206 2517 982 436 160 478 974 445 1275 Fastest Speed 16 | 50 80 29 29 29 29 29 25 25 16 16 17 34 34 34 34 34 34 34 Average Speed 32 | 125 89 44 29 29 29 29 28 25 18 16 30 34 34 34 34 34 34 34 Slowest Speed 180 | 160 90 180 29 99 29 29 120 25 110 17 34 34 34 34 117 34 34 117 Overloaded Moves . | . . . . . . . . . . . . . . . . . . . Propulsion Burnouts . | . . . . . . . . . . . . . . . . . . . Robots Hopped 84 | . . 2 6 5 . . 22 5 3 . 9 3 . 1 5 21 2 . Cave-ins Triggered 9 | . . . . . . . . . . . . . . . . 2 4 3 Exploration Rate (%) 61 | 6 92 97 89 58 94 23 93 47 35 83 58 97 91 91 42 35 17 27 Regions Visited 18 Branch Regions 6 Pre-discovered Areas . | . . . . . . . . . . . . . . . . . . . Known Exits Taken 16 | 1 1 1 1 1 1 1 1 1 . . 1 1 1 1 1 1 1 . Unknown Exits Taken . | . . . . . . . . . . . . . . . . . . . Scrap Searched 9 | . . . . . 8 1 . . . . . . . . . . . . Spaces Dug 191 | . . . . . 2 . 8 2 . 1 . . . . . 14 52 112 Terrain Destroyed 1273 | . . . 62 91 13 3 102 159 152 1 156 7 . 2 180 57 129 159 Melee . | . . . . . . . . . . . . . . . . . . . Projectile 439 | . . . 3 15 13 3 58 23 30 1 38 7 . 2 23 57 75 91 AOE 834 | . . . 59 76 . . 44 136 122 . 118 . . . 157 . 54 68 Actions | -11 -10 -9 -8 -7 -7 -7 -6 -5 -4 -4 -4 -4 -4 -4 -4 -3 -2 -1 --------- Run | Scr Mat Mat Mat Fac Low Low Fac Fac Fac Was Fac Ext Cet Arc Hub Res Res Acc Total 28481 | 180 777 1686 1458 2983 1727 138 5033 2073 2395 251 3411 1335 672 204 570 1192 840 1556 Wait 4757 | . 189 152 341 896 253 . 487 206 495 43 660 234 195 31 47 48 292 188 Move 21482 | 151 527 1354 928 1958 1444 134 4236 1734 1634 205 2498 975 435 157 468 932 440 1272 Hop 80 | . . 2 6 5 . . 21 5 3 . 9 3 . 1 4 20 1 . Pick Up 90 | 3 2 10 16 7 1 . 18 4 12 . 6 . . . . 3 5 3 Fast Attach 171 | 8 7 22 1 13 . . 24 11 21 1 27 4 2 . 3 21 1 5 Attach 42 | 1 . 5 13 1 . . 7 3 6 . 1 . . . . 2 1 2 Detach 12 | . . 2 3 . . . 2 . 2 . 1 . . . . 1 . 1 Swap 83 | . 3 6 7 8 1 . 22 4 12 . 5 4 . . . 5 4 2 Drop 225 | 2 11 27 12 20 . . 36 10 30 1 30 5 2 . 3 22 6 8 Fire 924 | 15 26 75 85 45 20 4 111 53 97 1 117 34 17 5 29 86 45 59 Melee 4 | . . . . . . . 2 . 2 . . . . . . . . . Ram . | . . . . . . . . . . . . . . . . . . . Kick . | . . . . . . . . . . . . . . . . . . . Crush . | . . . . . . . . . . . . . . . . . . . Escape Stasis 65 | . . . . . . . . 1 . . 4 56 . . . . 1 3 Rewire . | . . . . . . . . . . . . . . . . . . . Trap . | . . . . . . . . . . . . . . . . . . . Miscellaneous 546 | . 12 31 46 30 8 . 67 42 81 . 53 20 21 10 16 52 44 13 Route ------- -11/Scrapyard -10/Materials (discovered 5 exits: *Mat x3 / *Min x2) -9/Materials (discovered 6 exits: *Mat x3 / *Min x2 / *Sto) -8/Materials (discovered 3 exits: *Fac x3) -7/Factory (discovered 6 exits: *Fac x4 / *Low x2) -7/Lower Caves -7/Lower Caves -6/Factory (discovered 6 exits: *Fac x4 / *Low x2) -5/Factory (discovered 3 exits: *Fac / *Upp x2) -4/Factory (discovered 2 exits: *Res / *Upp) -4/Waste -4/Factory (discovered 5 exits: *Res / *Upp x2 / *Ext x2) -4/Extension (discovered 3 exits: *Res x2 / *Cet) -4/Cetus (discovered 3 exits: *Res x2 / *Arc) -4/Archives (discovered 3 exits: *Res / *Hub x2) -4/Hub_04(d) (discovered 2 exits: *Res x2) -3/Research (discovered 2 exits: *Res / *Qua) -2/Research (discovered 3 exits: *Acc x3) -1/Access History --------- Turn | Location | Event 28 | -11/Scrapyard | Identified exit to Materials 28 | -11/Scrapyard | Discovered exit to Materials (range 15) 46 | -11/Scrapyard | Upgraded with Utility slot (x2) 46 | -11/Scrapyard | Upgraded with Weapon slot (x1) 244 | -11/Scrapyard | Upgraded with Utility slot (x1) 251 | -11/Scrapyard | Entered Materials 262 | -10/Materials | Identified exit to Mines 316 | -10/Materials | Build established: Hacker-Mutant 580 | -10/Materials | Identified exit to Materials 580 | -10/Materials | Discovered exit to Materials (range 16) 825 | -10/Materials | Discovered exit to Materials (range 15) 964 | -10/Materials | Discovered exit to Materials (range 14) 1022 | -10/Materials | Entered another Materials area 1024 | -9/Materials | Reached level 2 1024 | -9/Materials | Reached level 3 1024 | -9/Materials | Reached level 4 1225 | -9/Materials | Upgraded with Utility slot (x2) 1225 | -9/Materials | Upgraded with Propulsion slot (x1) 1267 | -9/Materials | Identified exit to Mines 1267 | -9/Materials | Discovered exit to Mines (range 14) 1439 | -9/Materials | Reached level 5 1443 | -9/Materials | Upgraded with Propulsion slot (x1) 1483 | -9/Materials | Identified exit to Materials 1483 | -9/Materials | Discovered exit to Materials (range 16) 1731 | -9/Materials | Discovered exit to Materials (range 12) 1761 | -9/Materials | Identified exit to Storage 1761 | -9/Materials | Discovered exit to Storage (range 17) 1836 | -9/Materials | Discovered exit to Mines (range 7) 1846 | -9/Materials | Reached level 6 1858 | -9/Materials | Upgraded with Power slot (x1) 1858 | -9/Materials | Upgraded with Weapon slot (x1) 1884 | -9/Materials | Build established: Hacker-Sprinter 1916 | -9/Materials | Discovered exit to Materials (range 6) 2113 | -9/Materials | Entered another Materials area 2115 | -8/Materials | Reached level 7 2115 | -8/Materials | Reached level 8 2235 | -8/Materials | Upgraded with Utility slot (x1) 2259 | -8/Materials | Garrison activated, responded to threat 2269 | -8/Materials | Identified exit to Factory 2269 | -8/Materials | Discovered exit to Factory (range 17) 2330 | -8/Materials | Reached level 9 2627 | -8/Materials | Reached level 10 2715 | -8/Materials | Discovered exit to Factory (range 17) 3082 | -8/Materials | Upgraded with Weapon slot (x1) 3088 | -8/Materials | Entered Factory 3090 | -7/Factory | Reached level 11 3204 | -7/Factory | Reached level 12 3292 | -7/Factory | Identified exit to Factory 3292 | -7/Factory | Discovered exit to Factory (range 5) 3371 | -7/Factory | Upgraded with Utility slot (x1) 3492 | -7/Factory | Discovered exit to Factory (range 17) 3615 | -7/Factory | Identified exit to Lower Caves 4172 | -7/Factory | Discovered exit to Factory (range 17) 4181 | -7/Factory | Reached level 13 4459 | -7/Factory | Fabricated Reaction Control System (x1) 4791 | -7/Factory | Entered Lower Caves 4793 | -7/Lower Caves | Reached level 14 4827 | -7/Lower Caves | Learned Factory terminal intel 5209 | -7/Lower Caves | Encountered a Warlord checkpoint 5366 | -7/Lower Caves | Attacked by a faux Warlord 5413 | -7/Lower Caves | Learned Factory terminal intel 5493 | -7/Lower Caves | Identified exit to Lower Caves 5493 | -7/Lower Caves | Discovered exit to Lower Caves (range 9) 5544 | -7/Lower Caves | Entered another Lower Caves area 5592 | -7/Lower Caves | Discovered exit to Factory (range 14) 5596 | -7/Lower Caves | Entered Factory 5597 | -6/Factory | Loaded intel: 20 terminal locations 5598 | -6/Factory | Reached level 15 5692 | -6/Factory | Upgraded with Utility slot (x1) 5812 | -6/Factory | Identified exit to Factory 5812 | -6/Factory | Discovered exit to Factory (range 17) 5836 | -6/Factory | Identified exit to Lower Caves 5836 | -6/Factory | Discovered exit to Lower Caves (range 9) 5864 | -6/Factory | Reached level 16 5877 | -6/Factory | Upgraded with Propulsion slot (x1) 6053 | -6/Factory | Reached level 17 6368 | -6/Factory | Discovered exit to Factory (range 16) 6501 | -6/Factory | Upgraded with Propulsion slot (x1) 6579 | -6/Factory | Reached level 18 6646 | -6/Factory | First assault squad dispatched 6746 | -6/Factory | Discovered exit to Factory (range 3) 7050 | -6/Factory | Fabricated Fusion Compressor? 7211 | -6/Factory | Local fabrication network quarantined 7305 | -6/Factory | Fabricated Cld. Cesium-ion Thruster? 7310 | -6/Factory | Fabricated Cld. Cesium-ion Thruster? 7398 | -6/Factory | Discovered exit to Factory (range 13) 7621 | -6/Factory | Spotted B-75 Beast 7632 | -6/Factory | Reached level 19 7632 | -6/Factory | Destroyed B-75 Beast 7634 | -6/Factory | Upgraded with Utility slot (x1) 7880 | -6/Factory | Entered another Factory area 7881 | -5/Factory | Loaded intel: 20 terminal locations 7882 | -5/Factory | Reached level 20 7931 | -5/Factory | Spotted B-75 Beast 8056 | -5/Factory | Identified exit to Upper Caves 8056 | -5/Factory | Discovered exit to Upper Caves (range 6) 8308 | -5/Factory | Identified exit to Factory 8308 | -5/Factory | Discovered exit to Factory (range 16) 8340 | -5/Factory | Discovered exit to Upper Caves (range 17) 8344 | -5/Factory | Reached level 21 8355 | -5/Factory | Upgraded with Utility slot (x1) 8609 | -5/Factory | Destroyed 7 combat bots 8706 | -5/Factory | Found Prototype Processor 8706 | -5/Factory | Identified Exp. Signal Interpreter 8779 | -5/Factory | Entered another Factory area 8781 | -4/Factory | Reached level 22 8877 | -4/Factory | Reached level 23 9166 | -4/Factory | Upgraded with Power slot (x1) 9166 | -4/Factory | Upgraded with Propulsion slot (x1) 9307 | -4/Factory | Destroyed 8 combat bots 9341 | -4/Factory | Reached level 24 9423 | -4/Factory | Identified exit to Upper Caves 9423 | -4/Factory | Discovered exit to Upper Caves (range 3) 9455 | -4/Factory | Spotted B-86 Titan 9471 | -4/Factory | Destroyed B-86 Titan 9556 | -4/Factory | Build established: Generator-Sprinter 9558 | -4/Factory | Identified exit to Research 9558 | -4/Factory | Discovered exit to Research (range 11) 9797 | -4/Factory | Repaired Broken Adv. Sensor Array 9818 | -4/Factory | Reached level 25 9977 | -4/Factory | Fabricated Enh. Quantum Rifle? 10062 | -4/Factory | Sucked down chute 10062 | -4/Factory | Entered Waste 10063 | -4/Waste | Spotted C-40 Crusher 10064 | -4/Waste | Spotted C-40 Crusher 10077 | -4/Waste | EMP discharged 10077 | -4/Waste | Spotted C-40 Crusher 10078 | -4/Waste | Spotted C-40 Crusher 10079 | -4/Waste | Spotted C-40 Crusher 10095 | -4/Waste | Spotted C-40 Crusher 10097 | -4/Waste | Identified exit to Factory 10097 | -4/Waste | Discovered exit to Factory (range 17) 10110 | -4/Waste | Met Warlord forces unprepared to attack 10138 | -4/Waste | Allies destroyed C-40 Crusher 10144 | -4/Waste | Entered Factory 10536 | -4/Factory | Spotted B-86 Titan 10554 | -4/Factory | Destroyed B-86 Titan 10671 | -4/Factory | Discovered exit to Research (range 12) 10735 | -4/Factory | Fabricated G-50 Soldier (x3) 10735 | -4/Factory | P-70 Sage assimilated allied Soldier 7c 11011 | -4/Factory | Fabricated Field Propulsion Array? 11094 | -4/Factory | Discovered exit to Upper Caves (range 8) 11145 | -4/Factory | Local fabrication network quarantined 11184 | -4/Factory | Reached level 26 11277 | -4/Factory | Identified exit to Extension 11277 | -4/Factory | Discovered exit to Extension (range 16) 11353 | -4/Factory | Build established: Generator-Gunner 11644 | -4/Factory | First assault squad dispatched 11909 | -4/Factory | Discovered exit to Extension (range 11) 12008 | -4/Factory | Discovered exit to Upper Caves (range 17) 12077 | -4/Factory | Entered Extension 12178 | -4/Extension | Spotted B-86 Titan 12206 | -4/Extension | Core integrity fell below 50% 12216 | -4/Extension | Spotted B-86 Titan 12396 | -4/Extension | Destroyed B-86 Titan 12454 | -4/Extension | Destroyed B-86 Titan 12474 | -4/Extension | Discovered exit to Research (range 3) 12502 | -4/Extension | Identified exit to Cetus 12502 | -4/Extension | Discovered exit to Cetus (range 17) 12503 | -4/Extension | Discovered exit to Research (range 16) 12529 | -4/Extension | Rescued a captive Derelict 12531 | -4/Extension | Rescued a captive Derelict 12564 | -4/Extension | Rescued A7 12578 | -4/Extension | Upgraded with Utility slot (x1) 12649 | -4/Extension | Rescued a captive Derelict 12692 | -4/Extension | Rescued a captive Derelict 12696 | -4/Extension | Rescued a captive Derelict 12700 | -4/Extension | Rescued a captive Derelict 12851 | -4/Extension | Entered Cetus 12851 | -4/Cetus | Accompanied by 3 allies 12853 | -4/Cetus | Reached level 27 12856 | -4/Cetus | Acquired a Cetus Manufacturing Module code from A7 12857 | -4/Cetus | Spotted Cetus Guard 12857 | -4/Cetus | Spotted Cetus Guard 12863 | -4/Cetus | Destroyed Cetus Guard 12863 | -4/Cetus | Spotted Cetus Guard 12867 | -4/Cetus | Spotted Cetus Guard 12871 | -4/Cetus | Allies destroyed Cetus Guard 12873 | -4/Cetus | Destroyed Cetus Guard 12876 | -4/Cetus | Allies destroyed Cetus Guard 12896 | -4/Cetus | Discovered exit to Research (range 16) 12938 | -4/Cetus | Started Cetus Manufacturing Module 12941 | -4/Cetus | Escorted A7 to Cetus Mainframe 12963 | -4/Cetus | Manufactured an Enhanced Grunt 12988 | -4/Cetus | Manufactured an Enhanced Grunt 13013 | -4/Cetus | Manufactured an Enhanced Grunt 13038 | -4/Cetus | Manufactured an Enhanced Grunt 13063 | -4/Cetus | Manufactured an Enhanced Grunt 13104 | -4/Cetus | Identified exit to Archives 13104 | -4/Cetus | Discovered exit to Archives (range 16) 13111 | -4/Cetus | Spotted Cetus Guard 13111 | -4/Cetus | Spotted Cetus Guard 13143 | -4/Cetus | Spotted Cetus Guard 13144 | -4/Cetus | Spotted Cetus Guard 13150 | -4/Cetus | Allies destroyed Cetus Guard 13153 | -4/Cetus | Allies destroyed Cetus Guard 13153 | -4/Cetus | Allies destroyed Cetus Guard 13196 | -4/Cetus | Discovered exit to Research (range 16) 13199 | -4/Cetus | Met Revision 17 13277 | -4/Cetus | Entered Archives 13277 | -4/Archives | Accompanied by 7 allies 13282 | -4/Archives | Received a hacking code to weaken MAIN.C 13300 | -4/Archives | Unable to access archive contents 13301 | -4/Archives | Discovered exit to Research (range 16) 13311 | -4/Archives | Identified exit to Hub_04(d) 13311 | -4/Archives | Discovered exit to Hub_04(d) (range 15) 13318 | -4/Archives | Unable to access archive contents 13321 | -4/Archives | Unable to access archive contents 13326 | -4/Archives | Unable to access archive contents 13328 | -4/Archives | Discovered exit to Hub_04(d) (range 13) 13390 | -4/Archives | Entered Hub_04(d) 13390 | -4/Hub_04(d) | Accompanied by 5 allies 13579 | -4/Hub_04(d) | Discovered exit to Research (range 14) 13616 | -4/Hub_04(d) | Discovered exit to Research (range 16) 13666 | -4/Hub_04(d) | First assault squad dispatched 13689 | -4/Hub_04(d) | Network Hub disabled 13689 | -4/Hub_04(d) | Spotted B-86 Titan 13703 | -4/Hub_04(d) | Spotted Lightning 13704 | -4/Hub_04(d) | Spotted Lightning 13704 | -4/Hub_04(d) | Spotted Lightning 13724 | -4/Hub_04(d) | Entered Research 13726 | -3/Research | Reached level 28 13726 | -3/Research | Upgraded with Weapon slot (x1) 13765 | -3/Research | Crushed by falling debris 13935 | -3/Research | Reached level 29 13973 | -3/Research | Destroyed 9 combat bots 13978 | -3/Research | Identified exit to Quarantine 13978 | -3/Research | Discovered exit to Quarantine (range 17) 14000 | -3/Research | Identified exit to Research 14000 | -3/Research | Discovered exit to Research (range 8) 14089 | -3/Research | Destroyed 8 combat bots 14176 | -3/Research | Garrison activated, responded to threat 14224 | -3/Research | First assault squad dispatched 14441 | -3/Research | Crushed by falling debris 14511 | -3/Research | Entered another Research area 14513 | -2/Research | Reached level 30 14740 | -2/Research | Found Enh. Force Lance 14743 | -2/Research | Identified exit to Access 14878 | -2/Research | Reached level 31 14952 | -2/Research | Crushed by falling debris 15025 | -2/Research | Crushed by falling debris 15028 | -2/Research | Crushed by falling debris 15036 | -2/Research | Crushed by falling debris 15037 | -2/Research | Core integrity fell below 50% 15050 | -2/Research | First assault squad dispatched 15182 | -2/Research | Entered Access 15184 | -1/Access | Reached level 32 15289 | -1/Access | Crushed by falling debris 15290 | -1/Access | Core integrity fell below 50% 15291 | -1/Access | Crushed by falling debris 15458 | -1/Access | First assault squad dispatched 15633 | -1/Access | Reached level 33 15637 | -1/Access | Garrison activated, responded to threat 15905 | -1/Access | Garrison activated, responded to threat 15973 | -1/Access | Crushed by falling debris 15973 | -1/Access | Core integrity fell below 20% 15991 | -1/Access | Energy Cycler disabled 16046 | -1/Access | Reached level 34 16050 | -1/Access | Destroyed by B-74 Champion with Powered Hammer Last Messages --------------- 16033_ E-15 Imp unfolds itself. 16035_ P-80 Master suffers critical hit. 16035_ Destroyed Adv. Remote Datajack. 16035_ P-80 Master destroyed. 16035_ System corrupted: Hvy. Phase Cannon targeting data glitched. 16037_ Enh. Nova Cannon blown off. 16037_ Cld. Plasma Rifle blown off. 16037_ E-15 Imp destroyed. 16038_ System corrupted: Hvy. Phase Cannon targeting data glitched. 16038_ G-73 Enforcer destroyed. 16043_ G-73 Enforcer suffers critical hit. 16043_ G-73 Enforcer destroyed. 16046_ System corrupted: Force Rifle failed to cycle. 16046_ System corrupted: Hvy. Phase Cannon targeting data glitched. 16046_ Phase Gun melted. 16046_ G-73 Enforcer destroyed. 16046_ Reached level 34. 16050_ Protomatter-69 decays. [Achievement: Tester] [Achievement: Torch] Map ----- +----------------------------------------------------+ | + / S"#????????????t??????????????????????? | | # # """#?????????????k?????????????????????? | | # # """#???????????????????????????????????? | | # # #???????????????????????????????????? | | + # #????? ??????C????????????????????? | | ######"############ #??????????????????????????? | | #????# # #??????????????????????????? | | #????# + #??????????????????????????? | | #????# t # #??????????????????????????? | | #????# # #????????????????????k?????? | | #????# "" # #??????????????????????????? | | #????# """" + #??????????????????????????? | | ?????# """" # #??????????????????????????? | | ?????# """" # ##############?????????????? | | ?????# """ # # #?????????????? | | ?????# """" # # #?????????????? | | ?????# "" # " # #?????????????? | | ?????# "" # % ;* = #?????????????? | | ????##"#####"###### [*=!= #?????????????? | | k !%%[!= #?????????????? | | +*|=% #?????????????? | | # ==!! #?????????????? | | ############"###### #*!== = #?????????????? | | ???????????# #????# #!=/ #?????????????? | | ???????????# #????# #%!b #?????????????? | | ???????????###????# # @[ #?????????????? | | ??????????????????# ###]##########?????????????? | | ??????????????????# #?# #?????????????????????s? | | ??????????????????# #?# #????????????????????s?s | | ??????????????????# #?# #??????????????????????? | | ??????????????????# #?# #??????????????????????? | | ??????????????????# #?# #??????????????????????? | | ?????????????????A+ #?# #??????????????????????? | | ??????????????????# k#?# #??????????????????????? | | ??????????????????# #?###??????????????????????? | | ??????????????????# #??????????????????????????? | | ??????????????????# #?????????????????????????w? | | ??????????????????# ???????????????????????????? | | ?g????????????????? ???????????????????????????? | | ??????????????????? ???????????????????????????? | | ?????w???????????????????????????????????????????? | | ??????????????????????????????????w??????????????? | | ?????????????????????????????????????????????????? | | ?????????????????????????????????????????????????? | | ?????????????????????????????????????????????????? | | ?????????????????????????????????????????????????? | | ?????????????????????????????????????????????????? | | ?????????????????????????????????????????????????? | | ?????????????????????????????????????????????????? | | ?????????????????????????????????????????????????? | +----------------------------------------------------+ Best States ------------- Heat Dissipation 160 Energy Generation 74 Energy Capacity 1055 Matter Stores 500 Matter Capacity 500 Sight Range 17 Robot Scan Range 28 Terrain Scan Density 210 ECM Strength 1 Jamming Range 8 Cloak Strength 3 Base Temperature (-) 200 EM Shielding 2 Armor Coverage 600 Resistance: KI 65 Resistance: TH 35 Resistance: EX 35 Resistance: EM 35 Resistance: I 35 Resistance: S 35 Resistance: P 35 Core Shielding 20 Power Shielding 33 Point Defense Rating 160 Phase Shifting 10 Evasion (%) 86 Armor Integrity Analysis 66 Recoil Reduction 1 Energy Filtering 30 Particle Charging 25 Offensive Hacking 30 Defensive Hacking 5 Item Schematics ----------------- Hover Unit | -9/Materials | Scanalyzed Cryofiber Web | -9/Materials | Scanalyzed Particle Charger | -8/Materials | Scanalyzed Hrd. Light Armor Plating | -8/Materials | Scanalyzed Xenon Bombardment Thruster | -6/Factory | Scanalyzed Fusion Compressor | -6/Factory | Hacked Cld. Cesium-ion Thruster | -6/Factory | Scanalyzed Adv. Cooling System | -4/Factory | Scanalyzed Field Propulsion Array | -4/Factory | Scanalyzed Imp. Antigrav System | -4/Factory | Hacked Robot Schematics ------------------ G-50 Soldier | -6/Factory | Hacked R-10 Processor | -3/Research | Hacked T-07 Excavator | -1/Access | Hacked Fabricated ------------ Reaction Control System | x1 | -7/Factory | Preloaded Fusion Compressor | x2 | -6/Factory Cld. Cesium-ion Thruster | x1 | -6/Factory Cld. Cesium-ion Thruster | x1 | -6/Factory Enh. Quantum Rifle | x2 | -4/Factory | Preloaded G-50 Soldier | x3 | -4/Factory Field Propulsion Array | x2 | -4/Factory Alien Tech Used ----------------- None Achievements -------------- Can't Catch Me Collateral Damage Denied? Dodgeball, But With Guns Giant Slayer It Was An Accident, I Swear Main Advantage Prison Break Project G-00 Pyromaniac Revising The Future Tester Torch Challenges ------------ None RPGLIKE | -11 -10 -9 -8 -7 -7 -7 -6 -5 -4 -4 -4 -4 -4 -4 -4 -3 -2 -1 --------- Run | Scr Mat Mat Mat Fac Low Low Fac Fac Fac Was Fac Ext Cet Arc Hub Res Res Acc Levels Raised 33 | . . 5 4 3 1 . 5 2 4 . 1 . 1 . . 2 2 3 XP Earned 55506 | 6000 1255 7341 5768 4797 742 522 6778 3864 5122 71 2095 542 588 165 645 2949 2504 3758 XP Spent 50935 | 5995 . 7500 5915 3745 1000 . 8000 3200 3600 . . 3500 . . . 5505 2975 . Upgrades 91 | 25 . 13 13 4 1 . 4 1 4 . . 1 . . . 10 15 . Power Slot 2 | . . 1 . . . . . . 1 . . . . . . . . . Propulsion Slot 5 | . . 2 . . . . 2 . 1 . . . . . . . . . Utility Slot 11 | 3 . 2 1 1 . . 2 1 . . . 1 . . . . . . Weapon Slot 4 | 1 . 1 1 . . . . . . . . . . . . 1 . . Core Integrity 19 | 5 . . 2 1 . . . . . . . . . . . 1 10 . Heat Dissipation 15 | 7 . . 4 . . . . . . . . . . . . 4 . . Energy Generation 3 | . . 2 . . . . . . 1 . . . . . . . . . Energy Storage 8 | 2 . 1 1 . . . . . 1 . . . . . . . 3 . Mass Support 8 | . . 3 2 1 . . . . . . . . . . . 2 . . Inventory Capacity 4 | 1 . . 1 1 1 . . . . . . . . . . . . . Sight Range 1 | . . 1 . . . . . . . . . . . . . . . . Sensor Range 4 | 2 . . 1 . . . . . . . . . . . . . 1 . Ranged Accuracy 2 | 2 . . . . . . . . . . . . . . . . . . Hack Defense % 1 | . . . . . . . . . . . . . . . . . 1 . KI Damage % 1 | 1 . . . . . . . . . . . . . . . . . . TH Damage % 3 | 1 . . . . . . . . . . . . . . . 2 . . Protomatter Created 8303 | . 136 397 299 697 434 28 913 869 1392 . 1057 223 83 89 262 695 459 270 Integrity Restored 10833 | . 184 394 907 493 157 . 1283 790 1723 . 1047 453 459 219 303 1108 1013 300 Core 8127 | . 135 283 601 284 120 . 967 568 1118 . 782 453 383 . 253 875 1005 300 Parts 2706 | . 49 111 306 209 37 . 316 222 605 . 265 . 76 219 50 233 8 . Protomatter Decayed 4560 | . 69 254 24 470 275 28 526 427 682 . 637 155 65 47 320 355 121 105 Game ------ Seed DirtyChipRifle Manual? 0 Play Time 08:36:39 Cumulative 88.1 hours Start 2019.12.27 @ 20:24:28 End 2019.12.30 @ 03:57:20 Sessions 5 Manual Loads 0 Difficulty Explorer Special Mode Winter2019/RPGLIKE Game No. 54 Rogue 43 Adventurer 0 Explorer 11 Win Type - Total 0 Types 0/0/0/0/0/0/0 Lore% 21 Gallery% 50 Achievement% 37 Wizard Run 0 Options --------- ASCII 0 Keyboard 0 Movement Mouse Keybinds 0 Fullscreen 2 Font 18/SmallcapsGlow Map View 76x50 Tactical HUD 1 Map Filters NONE Filters NONE Steam 1 RUN: d7c5462d-e668-46a3-8f1f-83d4eebe99c5